fUSD/lending_fUSD_20241219
["ID","MTS","AMOUNT","RATE_DAILY","PERIOD"]
[346026308,1734633890584,-212.13182,0.00023288,7]
[346026309,1734633890616,-87.86818,0.00023488,7]
[346026310,1734633897193,-178.19773,0.00023488,7]
[346026311,1734633897224,-186.80227,0.00023688,7]
[346026313,1734634189933,157.21,0.00010137,2]
[346026324,1734634232151,-157.21,0.00019895,2]
[346026326,1734634232161,-192.42788,0.00020517,2]
[346026327,1734634232180,-475.18212,0.00020517,2]
[346026328,1734634232191,-525.24962787,0.00021164,2]
[346026329,1734634232200,-387.75748013,0.000212,2]
[346026330,1734634232260,-2318.25108692,0.000212,2]
[346026331,1734634232270,-1056.0,0.00021533,2]
[346026332,1734634232280,-160.513987,0.00021917,4]
[346026333,1734634232292,-170.896463,0.00021917,4]
[346026334,1734634232301,-170.896463,0.00021917,4]
[346026335,1734634232310,-1000.0,0.00022034,2]
[346026336,1734634232320,-170.896463,0.00022191,4]
[346026337,1734634232332,-551.48,0.00022271,2]
[346026338,1734634232342,-36.24119676,0.00022283,2]
[346026339,1734634232354,-187.42880324,0.00022283,2]
[346026340,1734634232363,-183.5,0.00022294,2]
[346026341,1734634232371,-159.82,0.00022346,2]
[346026342,1734634232380,-940.25049676,0.00022376,2]
[346026343,1734634232392,-2559.30460324,0.00022376,2]
[346026344,1734634232401,-1766.12,0.00022389,2]
[346026345,1734634232410,-9885.75,0.00022456,2]
[346026346,1734634232419,-202.93,0.00022456,2]
[346026347,1734634232428,-170.896463,0.00022465,4]
[346026348,1734634232437,-161.45,0.0002247,2]
[346026349,1734634232447,-1000.0,0.00022476,2]
[346026350,1734634232457,-150.0,0.00022488,4]
[346026351,1734634232466,-150.0,0.00022488,4]
[346026352,1734634232475,-150.0,0.00022488,4]
[346026353,1734634232484,-151.97511028,0.00022488,4]
[346026354,1734634232493,-150.5888469,0.00022488,4]
[346026355,1734634232502,-150.0,0.00022488,4]
[346026356,1734634232511,-250.0,0.00022491,2]
[346026357,1734634232520,-850.83,0.00022519,2]
[346026358,1734634232530,-160.513987,0.00022739,4]
[346026359,1734634232541,-170.896463,0.00022739,4]
[346026360,1734634232551,-1660.59,0.00022751,2]
[346026361,1734634232560,-667.61,0.00022781,2]
[346026362,1734634232570,-248.29,0.00023044,2]
[346026363,1734634232580,-1507.741,0.00023087,2]
[346026364,1734634232589,-500.0,0.00023088,4]
[346026365,1734634232600,-348.76254649,0.00023088,4]
[346026366,1734634232609,-500.0,0.00023088,4]
[346026367,1734634232619,-500.0,0.00023088,4]
[346026368,1734634232629,-500.0,0.00023088,4]
[346026369,1734634232639,-500.0,0.00023088,4]
[346026370,1734634232648,-500.0,0.00023088,4]
[346026371,1734634232659,-500.0,0.00023088,4]
[346026372,1734634232668,-500.0,0.00023088,4]
[346026373,1734634232677,-500.0,0.00023088,4]
[346026374,1734634232686,-500.0,0.00023088,4]
[346026375,1734634232695,-500.0,0.00023088,4]
[346026376,1734634232704,-500.0,0.00023088,4]
[346026377,1734634232713,-500.0,0.00023088,4]
[346026379,1734634232722,-500.0,0.00023088,4]
[346026381,1734634232731,-511.90829478,0.00023088,4]
[346026383,1734634232740,-500.0,0.00023088,4]
[346026385,1734634232750,-500.0,0.00023088,4]
[346026387,1734634232759,-500.0,0.00023088,4]
[346026389,1734634232768,-500.0,0.00023088,4]
[346026391,1734634232777,-500.0,0.00023088,4]
[346026393,1734634232787,-500.0,0.00023088,4]
[346026394,1734634232797,-500.0,0.00023088,4]
[346026397,1734634232807,-500.0,0.00023088,4]
[346026399,1734634232816,-500.0,0.00023088,4]
[346026401,1734634232826,-520.16530181,0.00023088,4]
[346026403,1734634232835,-500.0,0.00023088,4]
[346026404,1734634232844,-500.0,0.00023088,4]
[346026406,1734634232853,-500.0,0.00023088,4]
[346026408,1734634232862,-500.0,0.00023088,4]
[346026410,1734634232871,-500.0,0.00023088,4]
[346026412,1734634232880,-500.0,0.00023088,4]
[346026414,1734634232889,-504.89,0.00023088,4]
[346026416,1734634232898,-500.0,0.00023088,4]
[346026418,1734634232908,-500.0,0.00023088,4]
[346026420,1734634232917,-500.0,0.00023088,4]
[346026422,1734634232926,-500.0,0.00023088,4]
[346026424,1734634232935,-500.0,0.00023088,4]
[346026426,1734634232944,-199.21141559,0.00023088,4]
[346026428,1734634232954,-500.0,0.00023088,4]
[346026429,1734634232963,-500.0,0.00023088,4]
[346026431,1734634232972,-500.0,0.00023088,4]
[346026433,1734634232981,-500.0,0.00023088,4]
[346026435,1734634232990,-174.50709645,0.00023088,4]
[346026437,1734634232999,-500.0,0.00023088,4]
[346026439,1734634233008,-500.0,0.00023088,4]
[346026441,1734634233018,-500.0,0.00023088,4]
[346026443,1734634233027,-304.0148169,0.00023088,4]
[346026445,1734634233038,-500.0,0.00023088,4]
[346026447,1734634233048,-500.0,0.00023088,4]
[346026449,1734634233057,-500.0,0.00023088,4]
[346026451,1734634233067,-500.0,0.00023088,4]
[346026453,1734634233076,-500.0,0.00023088,4]
[346026455,1734634233085,-500.0,0.00023088,4]
[346026457,1734634233094,-638.01178367,0.00023088,4]
[346026459,1734634233104,-500.0,0.00023088,4]
[346026461,1734634233114,-500.0,0.00023088,4]
[346026463,1734634233123,-500.0,0.00023088,4]
[346026465,1734634233132,-500.0,0.00023088,4]
[346026467,1734634233141,-500.0,0.00023088,4]
[346026469,1734634233150,-500.0,0.00023088,4]
[346026471,1734634233162,-5000.0,0.00023088,4]
[346026473,1734634233178,-500.0,0.00023088,4]
[346026479,1734634233355,-500.0,0.00023088,4]
[346026480,1734634233365,-500.0,0.00023088,4]
[346026481,1734634233375,-500.0,0.00023088,4]
[346026482,1734634233384,-500.0,0.00023088,4]
[346026483,1734634233393,-500.0,0.00023088,4]
[346026484,1734634233402,-500.0,0.00023088,4]
[346026485,1734634233411,-545.54,0.00023088,4]
[346026486,1734634233420,-500.0,0.00023088,4]
[346026487,1734634233430,-654.97,0.00023088,4]
[346026488,1734634233439,-560.66,0.00023088,4]
[346026489,1734634233449,-272.17087896,0.00023088,4]
[346026490,1734634233459,-372.5253043,0.00023088,4]
[346026491,1734634233468,-500.0,0.00023088,4]
[346026492,1734634233477,-500.0,0.00023088,4]
[346026493,1734634233486,-500.0,0.00023088,4]
[346026494,1734634233495,-500.0,0.00023088,4]
[346026495,1734634233504,-768.18,0.00023088,4]
[346026496,1734634233514,-500.0,0.00023088,4]
[346026497,1734634233523,-500.0,0.00023179,4]
[346026498,1734634233532,-500.0,0.00023179,4]
[346026499,1734634233545,-500.0,0.00023179,4]
[346026500,1734634233554,-500.0,0.00023179,4]
[346026501,1734634233563,-500.0,0.00023179,4]
[346026502,1734634233572,-500.0,0.00023179,4]
[346026503,1734634233582,-500.0,0.00023179,4]
[346026504,1734634233591,-500.0,0.00023179,4]
[346026505,1734634233601,-500.0,0.00023179,4]
[346026506,1734634233610,-500.0,0.00023179,4]
[346026507,1734634233619,-500.0,0.00023179,4]
[346026508,1734634233629,-585.21105478,0.00023179,4]
[346026509,1734634233638,-160.0942881,0.00023179,4]
[346026510,1734634233658,-500.0,0.00023179,4]
[346026511,1734634233667,-500.0,0.00023179,4]
[346026512,1734634233677,-500.0,0.00023179,4]
[346026513,1734634233687,-500.0,0.00023179,4]
[346026514,1734634233697,-469.70189821,0.00023179,4]
[346026515,1734634233707,-500.0,0.00023179,4]
[346026516,1734634233717,-536.81,0.00023179,4]
[346026517,1734634233726,-500.0,0.00023179,4]
[346026518,1734634233736,-500.0,0.00023179,4]
[346026519,1734634233746,-500.0,0.00023179,4]
[346026520,1734634233756,-500.0,0.00023179,4]
[346026521,1734634233766,-500.0,0.00023179,4]
[346026522,1734634233776,-500.0,0.00023179,4]
[346026523,1734634233789,-170.896463,0.00023287,4]
[346026524,1734634233799,-500.0,0.00023362,4]
[346026525,1734634233808,-500.0,0.00023362,4]
[346026526,1734634233819,-500.0,0.00023362,4]
[346026527,1734634233829,-177.41733357,0.00023362,4]
[346026528,1734634233839,-500.0,0.00023362,4]
[346026529,1734634233849,-354.47002792,0.00023362,4]
[346026530,1734634233859,-500.0,0.00023362,4]
[346026531,1734634233868,-231.17005197,0.00023362,4]
[346026532,1734634233878,-500.0,0.00023362,4]
[346026533,1734634233888,-209.67,0.00023362,4]
[346026534,1734634233897,-500.0,0.00023362,4]
[346026535,1734634233907,-188.5,0.00023362,4]
[346026536,1734634233917,-292.96,0.00023362,4]
[346026537,1734634233927,-221.0,0.00023362,4]
[346026538,1734634233937,-500.0,0.00023362,4]
[346026539,1734634233947,-537.51,0.00023362,4]
[346026540,1734634233957,-175.42,0.00023362,4]
[346026541,1734634233967,-500.0,0.00023362,4]
[346026542,1734634233977,-500.0,0.00023362,4]
[346026543,1734634233987,-500.0,0.00023362,4]
[346026544,1734634233996,-183.84,0.00023362,4]
[346026545,1734634234006,-500.0,0.00023362,4]
[346026546,1734634234016,-500.0,0.00023362,4]
[346026547,1734634234026,-500.0,0.00023362,4]
[346026548,1734634234037,-646.46876734,0.00023362,4]
[346026549,1734634234048,-500.0,0.00023362,4]
[346026550,1734634234058,-500.0,0.00023362,4]
[346026551,1734634234067,-500.0,0.00023362,4]
[346026552,1734634234077,-500.0,0.00023362,4]
[346026553,1734634234087,-545.54,0.00023362,4]
[346026554,1734634234097,-500.0,0.00023362,4]
[346026555,1734634234107,-654.97,0.00023362,4]
[346026556,1734634234118,-500.0,0.00023362,4]
[346026557,1734634234127,-768.18,0.00023362,4]
[346026558,1734634234137,-603.14,0.00023362,4]
[346026559,1734634234146,-566.69663956,0.00023453,4]
[346026560,1734634234157,-500.0,0.00023453,4]
[346026561,1734634234167,-275.81,0.00023453,4]
[346026562,1734634234178,-193.33,0.00023453,4]
[346026563,1734634234188,-500.0,0.00023453,4]
[346026564,1734634234197,-500.0,0.00023453,4]
[346026565,1734634234208,-500.0,0.00023453,4]
[346026566,1734634234217,-500.0,0.00023453,4]
[346026567,1734634234227,-536.81,0.00023453,4]
[346026568,1734634234236,-500.0,0.00023453,4]
[346026569,1734634234246,-186.36,0.00023453,4]
[346026570,1734634234256,-500.0,0.00023453,4]
[346026571,1734634234265,-255.98,0.00023453,4]
[346026572,1734634234275,-500.0,0.00023453,4]
[346026573,1734634234284,-205.0,0.0002348,2]
[346026574,1734634234295,-705.98,0.000235,2]
[346026575,1734634234304,-150.0,0.00023525,2]
[346026576,1734634234314,-300.0,0.00023525,2]
[346026577,1734634234324,-436.03,0.00023525,2]
[346026578,1734634234333,-976.54,0.00023525,2]
[346026579,1734634234342,-364.84,0.00023525,2]
[346026580,1734634234352,-976.54,0.00023525,2]
[346026581,1734634234361,-436.03,0.00023525,2]
[346026582,1734634234371,-976.54,0.00023525,2]
[346026583,1734634234380,-436.03,0.00023525,2]
[346026584,1734634234390,-976.54,0.00023525,2]
[346026585,1734634234399,-436.03,0.00023525,2]
[346026586,1734634234408,-170.896463,0.00023561,4]
[346026587,1734634234417,-3462.11945277,0.00023627,2]
[346026588,1734634234427,-500.0,0.00023636,4]
[346026589,1734634234436,-500.0,0.00023636,4]
[346026590,1734634234445,-500.0,0.00023636,4]
[346026591,1734634234455,-500.0,0.00023636,4]
[346026592,1734634234464,-437.51,0.00023636,4]
[346026593,1734634234473,-500.0,0.00023636,4]
[346026594,1734634234483,-512.88189483,0.00023636,4]
[346026595,1734634234492,-500.0,0.00023636,4]
[346026596,1734634234502,-292.16161258,0.00023636,4]
[346026597,1734634234517,-207.83838742,0.00023636,4]
[346026598,1734634234527,-201.86761214,0.00023636,4]
[346026599,1734634234614,-43.89238786,0.00023636,4]
[346026600,1734634234624,-500.0,0.00023636,4]
[346026601,1734634234634,-500.0,0.00023636,4]
[346026602,1734634234644,-500.0,0.00023636,4]
[346026603,1734634234654,-408.05867751,0.00023636,4]
[346026604,1734634234666,-91.94132249,0.00023636,4]
[346026605,1734634234675,-545.54,0.00023636,4]
[346026606,1734634234684,-500.0,0.00023636,4]
[346026607,1734634234694,-654.97,0.00023636,4]
[346026608,1734634234704,-500.0,0.00023636,4]
[346026609,1734634234713,-692.64863406,0.00023636,4]
[346026610,1734634234726,-75.53136594,0.00023636,4]
[346026611,1734634234735,-79.26364,0.00023688,7]
[346026612,1734634234745,-152.0,0.00023694,3]
[346026613,1734634234755,-196.81019459,0.00023727,4]
[346026614,1734634234771,-297.40980541,0.00023727,4]
[346026615,1734634234781,-292.42894522,0.00023727,4]
[346026616,1734634234792,-490.79022299,0.00023727,4]
[346026617,1734634234802,-278.51,0.00023727,4]
[346026618,1734634234811,-500.0,0.00023727,4]
[346026619,1734634234820,-536.81,0.00023727,4]
[346026620,1734634234829,-94.92922523,0.00023727,4]
[346026621,1734634234841,-405.07077477,0.00023727,4]
[346026622,1734634234850,-500.0,0.00023727,4]
[346026623,1734634234859,-500.0,0.00023727,4]
[346026624,1734634234869,-150.0,0.00023737,4]
[346026625,1734634234878,-406.737,0.0002375,2]
[346026626,1734634234887,-3462.11945272,0.00023768,2]
[346026627,1734634234897,-1000.0,0.00023799,2]
[346026628,1734634234907,-159.82,0.00023836,2]
[346026629,1734634234916,-205.0,0.0002386,2]
[346026630,1734634234926,-4171.0304,0.00023898,2]
[346026631,1734634234935,-220.0,0.00023899,2]
[346026632,1734634234945,-27291.4471,0.00023899,2]
[346026633,1734634234954,-500.0,0.00023909,4]
[346026634,1734634234963,-500.0,0.00023909,4]
[346026635,1734634234972,-542.0,0.00023909,4]
[346026636,1734634234982,-500.0,0.00023909,4]
[346026637,1734634234991,-500.0,0.00023909,4]
[346026638,1734634235000,-500.0,0.00023909,4]
[346026639,1734634235010,-500.0,0.00023909,4]
[346026640,1734634235019,-3462.11945272,0.0002391,2]
[346026641,1734634235029,-423.608612,0.0002391,4]
[346026642,1734634235041,-500.0,0.0002391,4]
[346026643,1734634235050,-500.0,0.0002391,4]
[346026644,1734634235060,-500.0,0.0002391,4]
[346026645,1734634235069,-500.0,0.0002391,4]
[346026646,1734634235079,-500.0,0.0002391,4]
[346026647,1734634235088,-500.0,0.0002391,4]
[346026648,1734634235097,-500.0,0.0002391,4]
[346026649,1734634235107,-500.0,0.0002391,4]
[346026650,1734634235116,-587.69,0.0002391,4]
[346026651,1734634235125,-500.0,0.0002391,4]
[346026652,1734634235135,-545.54,0.0002391,4]
[346026653,1734634235144,-500.0,0.0002391,4]
[346026654,1734634235154,-654.97,0.0002391,4]
[346026655,1734634235164,-500.0,0.0002391,4]
[346026656,1734634235177,-768.18,0.0002391,4]
[346026657,1734634235186,-500.0,0.00023996,4]
[346026658,1734634235195,-500.0,0.00023996,4]
[346026659,1734634235204,-500.0,0.00023996,4]
[346026660,1734634235215,-500.0,0.00023996,4]
[346026661,1734634235224,-1247.16,0.00023996,4]
[346026662,1734634235234,-500.0,0.00023996,4]
[346026663,1734634235244,-500.0,0.00023996,4]
[346026664,1734634235253,-500.0,0.00023996,4]
[346026665,1734634235263,-500.0,0.00023996,4]
[346026666,1734634235273,-3871.217311,0.00023996,2]
[346026667,1734634235282,-500.0,0.00023996,4]
[346026668,1734634235293,-600.00000003,0.00023996,4]
[346026669,1734634235303,-500.0,0.00023996,4]
[346026670,1734634235312,-351.65331871,0.00023997,4]
[346026671,1734634235321,-500.0,0.00023997,4]
[346026672,1734634235331,-500.0,0.00023997,4]
[346026673,1734634235340,-500.0,0.00023997,4]
[346026674,1734634235350,-500.0,0.00023997,4]
[346026675,1734634235358,-500.0,0.00023997,4]
[346026676,1734634235367,-500.0,0.00023997,4]
[346026677,1734634235376,-504.7834953,0.00023997,4]
[346026678,1734634235386,-500.0,0.00023997,4]
[346026679,1734634235395,-458.65761997,0.00023997,4]
[346026680,1734634235404,-500.0,0.00023997,4]
[346026681,1734634235413,-500.0,0.00023997,4]
[346026682,1734634235422,-500.0,0.00023997,4]
[346026683,1734634235431,-500.0,0.00023997,4]
[346026684,1734634235440,-500.0,0.00023997,4]
[346026685,1734634235449,-500.0,0.00023997,4]
[346026686,1734634235458,-500.0,0.00023997,4]
[346026687,1734634235467,-500.0,0.00023997,4]
[346026688,1734634235476,-500.0,0.00023997,4]
[346026689,1734634235485,-500.0,0.00023997,4]
[346026690,1734634235494,-500.0,0.00023997,4]
[346026691,1734634235503,-500.0,0.00023997,4]
[346026692,1734634235512,-500.0,0.00023997,4]
[346026693,1734634235521,-1374.7,0.00023997,4]
[346026694,1734634235530,-500.0,0.00023997,4]
[346026695,1734634235542,-500.0,0.00023997,4]
[346026696,1734634235551,-500.0,0.00023997,4]
[346026697,1734634235560,-747.37,0.00023997,4]
[346026698,1734634235569,-500.0,0.00023997,4]
[346026699,1734634235579,-500.0,0.00023997,4]
[346026700,1734634235588,-500.0,0.00023997,4]
[346026701,1734634235597,-500.0,0.00023997,4]
[346026702,1734634235607,-500.0,0.00023997,4]
[346026703,1734634235617,-500.0,0.00023997,4]
[346026704,1734634235626,-500.0,0.00023997,4]
[346026705,1734634235636,-500.0,0.00023997,4]
[346026706,1734634235645,-500.0,0.00023997,4]
[346026707,1734634235655,-500.0,0.00023997,4]
[346026708,1734634235666,-408.69869785,0.00023997,4]
[346026709,1734634235676,-500.0,0.00023997,4]
[346026710,1734634235686,-500.0,0.00023997,4]
[346026711,1734634235695,-632.21,0.00023997,4]
[346026712,1734634235704,-500.0,0.00023997,4]
[346026713,1734634235713,-500.0,0.00023997,4]
[346026714,1734634235722,-500.0,0.00023997,4]
[346026715,1734634235731,-500.0,0.00023997,4]
[346026716,1734634235741,-500.0,0.00023997,4]
[346026717,1734634235750,-500.0,0.00023997,4]
[346026718,1734634235759,-500.0,0.00023997,4]
[346026719,1734634235769,-500.0,0.00023997,4]
[346026720,1734634235778,-500.0,0.00023997,4]
[346026721,1734634235788,-713.87,0.00023997,4]
[346026722,1734634235799,-500.0,0.00023997,4]
[346026723,1734634235808,-500.0,0.00023998,4]
[346026724,1734634235817,-447.821369,0.00023998,4]
[346026725,1734634235827,-500.0,0.00023998,4]
[346026726,1734634235836,-500.0,0.00023998,4]
[346026727,1734634235847,-485.90479618,0.00023998,4]
[346026728,1734634235856,-500.0,0.00023998,4]
[346026729,1734634235866,-500.0,0.00023998,4]
[346026730,1734634235875,-516.69047068,0.00023998,4]
[346026731,1734634235884,-500.0,0.00023998,4]
[346026732,1734634235894,-500.0,0.00023998,4]
[346026733,1734634235903,-500.0,0.00023998,4]
[346026734,1734634235912,-521.32796217,0.00023998,4]
[346026735,1734634235922,-500.0,0.00023998,4]
[346026736,1734634235931,-500.0,0.00023998,4]
[346026737,1734634235941,-164.3,0.00023998,4]
[346026738,1734634235951,-500.0,0.00023998,4]
[346026739,1734634235961,-500.0,0.00023998,4]
[346026740,1734634235971,-500.0,0.00023998,4]
[346026741,1734634235980,-608.54261949,0.00023998,4]
[346026742,1734634235990,-500.0,0.00023998,4]
[346026743,1734634236000,-163.13624277,0.00023998,4]
[346026744,1734634236010,-500.0,0.00023998,4]
[346026745,1734634236020,-500.0,0.00023998,4]
[346026746,1734634236030,-500.0,0.00023998,4]
[346026747,1734634236042,-500.0,0.00023998,4]
[346026748,1734634236052,-500.0,0.00023998,4]
[346026749,1734634236061,-500.0,0.00023998,4]
[346026750,1734634236071,-500.0,0.00023998,2]
[346026751,1734634236081,-500.0,0.00023998,4]
[346026752,1734634236090,-500.0,0.00023998,4]
[346026753,1734634236099,-500.0,0.00023998,4]
[346026754,1734634236108,-500.0,0.00023998,4]
[346026755,1734634236118,-354.06112625,0.00023998,4]
[346026756,1734634236127,-500.0,0.00023998,4]
[346026757,1734634236137,-500.0,0.00023998,4]
[346026758,1734634236146,-500.0,0.00023998,4]
[346026759,1734634236156,-500.0,0.00023998,4]
[346026760,1734634236166,-364.70118542,0.00023998,4]
[346026761,1734634236178,-500.0,0.00023998,4]
[346026762,1734634236188,-500.0,0.00023998,4]
[346026763,1734634236197,-500.0,0.00023998,4]
[346026764,1734634236208,-500.0,0.00023998,4]
[346026765,1734634236218,-500.0,0.00023998,4]
[346026766,1734634236227,-376.89057871,0.00023998,4]
[346026767,1734634236237,-500.0,0.00023998,4]
[346026768,1734634236247,-500.0,0.00023998,4]
[346026769,1734634236257,-500.0,0.00023998,4]
[346026770,1734634236266,-500.0,0.00023998,4]
[346026771,1734634236276,-500.0,0.00023998,4]
[346026772,1734634236285,-500.0,0.00023998,4]
[346026773,1734634236297,-500.0,0.00023998,4]
[346026774,1734634236307,-312.93,0.00023998,4]
[346026775,1734634236317,-500.0,0.00023998,4]
[346026776,1734634236326,-500.0,0.00023998,4]
[346026777,1734634236335,-707.77,0.00023998,4]
[346026778,1734634236345,-500.0,0.00023998,4]
[346026779,1734634236354,-500.0,0.00023998,4]
[346026780,1734634236363,-500.0,0.00023998,4]
[346026781,1734634236372,-195.86583179,0.00023998,4]
[346026782,1734634236382,-500.0,0.00023998,4]
[346026783,1734634236391,-500.0,0.00023998,4]
[346026784,1734634236401,-500.0,0.00023998,4]
[346026785,1734634236410,-500.0,0.00023998,4]
[346026786,1734634236419,-500.0,0.00023998,4]
[346026787,1734634236429,-500.0,0.00023998,4]
[346026788,1734634236438,-500.0,0.00023998,4]
[346026789,1734634236447,-500.0,0.00023998,4]
[346026790,1734634236456,-1069.16,0.00023998,4]
[346026791,1734634236466,-500.0,0.00023998,4]
[346026792,1734634236475,-588.77,0.00023998,4]
[346026793,1734634236484,-500.0,0.00023998,4]
[346026794,1734634236494,-500.0,0.00023998,4]
[346026795,1734634236503,-573.08,0.00023998,4]
[346026796,1734634236512,-500.0,0.00023998,4]
[346026797,1734634236521,-500.0,0.00023998,4]
[346026798,1734634236531,-500.0,0.00023998,4]
[346026799,1734634236541,-500.0,0.00023998,4]
[346026800,1734634236550,-500.0,0.00023998,4]
[346026801,1734634236559,-500.0,0.00023998,4]
[346026802,1734634236568,-944.26,0.00023998,4]
[346026803,1734634236577,-500.0,0.00023998,4]
[346026804,1734634236586,-1058.66,0.00023998,4]
[346026805,1734634236595,-500.0,0.00023998,4]
[346026806,1734634236604,-500.0,0.00023998,4]
[346026807,1734634236614,-1000.0,0.00023998,4]
[346026808,1734634236623,-500.0,0.00023998,4]
[346026809,1734634236632,-500.0,0.00023998,4]
[346026810,1734634236641,-500.0,0.00023998,4]
[346026811,1734634236650,-500.0,0.00023998,4]
[346026812,1734634236659,-583.83,0.00023998,4]
[346026813,1734634236668,-500.0,0.00023998,4]
[346026814,1734634236677,-500.0,0.00023998,4]
[346026815,1734634236686,-500.0,0.00023999,4]
[346026816,1734634236695,-500.0,0.00023999,4]
[346026817,1734634236704,-500.0,0.00023999,4]
[346026818,1734634236713,-250.75930885,0.00023999,4]
[346026819,1734634236722,-500.0,0.00023999,4]
[346026820,1734634236731,-252.80594002,0.00024,7]
[346026821,1734634236740,-1030.37674787,0.00024,2]
[346026822,1734634236750,-500.0,0.00024001,4]
[346026823,1734634236759,-536.81,0.00024001,4]
[346026824,1734634236768,-500.0,0.00024001,4]
[346026825,1734634236777,-500.0,0.00024001,4]
[346026826,1734634236787,-500.0,0.00024001,4]
[346026827,1734634236798,-3462.11945272,0.00024051,2]
[346026828,1734634236807,-266.06591,0.00024088,7]
[346026829,1734634236816,-181.63479932,0.00024137,2]
[346026830,1734634236826,-218.89629141,0.00024171,2]
[346026831,1734634236835,-7255.74,0.00024174,2]
[346026832,1734634236844,-5026.7,0.00024174,2]
[346026833,1734634236853,-7882.71,0.00024174,2]
[346026834,1734634236863,-9999.99,0.00024174,2]
[346026835,1734634236873,-150.99,0.00024174,2]
[346026836,1734634236882,-150.99,0.00024174,2]
[346026837,1734634236892,-999.99,0.00024174,2]
[346026838,1734634236901,-500.0,0.00024183,4]
[346026839,1734634236910,-500.0,0.00024183,4]
[346026840,1734634236919,-542.0,0.00024183,4]
[346026841,1734634236929,-230.17,0.00024183,4]
[346026842,1734634236939,-500.0,0.00024183,4]
[346026843,1734634236949,-500.0,0.00024183,4]
[346026844,1734634236959,-165.06,0.00024183,4]
[346026845,1734634236968,-500.0,0.00024184,4]
[346026846,1734634236977,-346.91385203,0.00024184,4]
[346026847,1734634236987,-500.0,0.00024184,4]
[346026848,1734634236996,-500.0,0.00024184,4]
[346026849,1734634237005,-587.68,0.00024184,4]
[346026850,1734634237014,-500.0,0.00024184,4]
[346026851,1734634237024,-500.0,0.00024184,4]
[346026852,1734634237033,-500.0,0.00024184,4]
[346026853,1734634237044,-500.0,0.00024184,4]
[346026854,1734634237054,-545.54,0.00024184,4]
[346026855,1734634237063,-500.0,0.00024184,4]
[346026856,1734634237073,-654.97,0.00024184,4]
[346026857,1734634237083,-500.0,0.00024184,4]
[346026858,1734634237092,-768.18,0.00024184,4]
[346026859,1734634237101,-3462.11945272,0.00024193,2]
[346026860,1734634237110,-205.0,0.0002424,2]
[346026861,1734634237120,-218.89629133,0.00024252,2]
[346026862,1734634237131,-500.0,0.0002427,4]
[346026863,1734634237142,-500.0,0.0002427,4]
[346026864,1734634237151,-222.71,0.0002427,4]
[346026865,1734634237162,-500.0,0.0002427,4]
[346026866,1734634237174,-1247.16,0.0002427,4]
[346026867,1734634237184,-500.0,0.0002427,4]
[346026868,1734634237196,-500.0,0.0002427,4]
[346026869,1734634237206,-500.0,0.0002427,4]
[346026870,1734634237215,-500.0,0.0002427,4]
[346026871,1734634237224,-500.0,0.00024271,4]